[Event "*** Titled Tuesday Blitz"]
[Site "Chess.com"]
[Date "2021.02.16"]
[Round "11"]
[White "Nuvas"]
[Black "IMRosen"]
[Result "1-0"]
[WhiteElo "2511"]
[BlackElo "2619"]
[TimeControl "180+1"]
[EndTime "12:09:50 PST"]
[Termination "Nuvas won by resignation"]

1. d4 {[%clk 0:03:00.9]} 1... d5 {[%clk 0:02:59.8]} 2. c4 {[%clk 0:03:01.3]}
2... e6 {[%clk 0:02:59.9]} 3. Nc3 {[%clk 0:03:01.2]} 3... Nf6 {[%clk 0:03:00.4]}
4. cxd5 {[%clk 0:03:01.6]} 4... exd5 {[%clk 0:03:00.3]} 5. Bg5 {[%clk
0:03:01.3]} 5... c6 {[%clk 0:02:59.7]} 6. e3 {[%clk 0:03:01.8]} 6... Bd6 {[%clk
0:03:00.2]} 7. Bd3 {[%clk 0:03:02]} 7... h6 {[%clk 0:02:58.7]} 8. Bh4 {[%clk
0:03:02.3]} 8... O-O {[%clk 0:02:59.3]} 9. Nge2 {[%clk 0:03:02.6]} 9... Re8
{[%clk 0:02:59.8]} 10. h3 {[%clk 0:03:02.1]} 10... a5 {[%clk 0:02:59.4]} 11. O-O
{[%clk 0:03:01.4]} 11... Na6 {[%clk 0:02:59.8]} 12. a3 {[%clk 0:02:57.7]} 12...
Nc7 {[%clk 0:03:00.3]} 13. Qd2 {[%clk 0:02:39.2]} 13... Ne6 {[%clk 0:02:59.1]}
14. f3 {[%clk 0:02:36.5]} 14... Ng5 {[%clk 0:02:58.9]} 15. Bxg5 {[%clk
0:02:21.6]} 15... hxg5 {[%clk 0:02:58.1]} 16. e4 {[%clk 0:02:22.1]} 16... dxe4
{[%clk 0:02:42.6]} 17. fxe4 {[%clk 0:02:19.4]} 17... Bf4 {[%clk 0:02:43.2]} 18.
Nxf4 {[%clk 0:01:46.5]} 18... Qxd4+ {[%clk 0:02:41.1]} 19. Kh1 {[%clk 0:01:47]}
19... gxf4 {[%clk 0:02:40.8]} 20. e5 {[%clk 0:01:45.9]} 20... Qxe5 {[%clk
0:02:32.8]} 21. Rae1 {[%clk 0:01:45.8]} 21... Qg5 {[%clk 0:02:33.2]} 22. Rxe8+
{[%clk 0:01:42.9]} 22... Nxe8 {[%clk 0:02:34.1]} 23. Ne4 {[%clk 0:01:40.4]}
23... Qe7 {[%clk 0:02:26.4]} 24. Qxf4 {[%clk 0:01:39.6]} 24... Be6 {[%clk
0:02:26.3]} 25. Ng5 {[%clk 0:01:37.8]} 25... Qd6 {[%clk 0:02:06.9]} 26. Bh7+
{[%clk 0:01:29.1]} 26... Kh8 {[%clk 0:01:57.8]} 27. Qh4 {[%clk 0:01:29.1]} 27...
Nf6 {[%clk 0:01:48.5]} 28. Ne4 {[%clk 0:00:52.3]} 28... Nxe4 {[%clk 0:01:21.4]}
29. Bxe4+ {[%clk 0:00:50.7]} 29... Kg8 {[%clk 0:01:22]} 30. Qh7+ {[%clk
0:00:50.7]} 30... Kf8 {[%clk 0:01:22.7]} 31. Qh8+ {[%clk 0:00:51.2]} 31... Ke7
{[%clk 0:01:21]} 32. Qxa8 {[%clk 0:00:51.9]} 32... Qc7 {[%clk 0:01:20.5]} 33.
Rd1 {[%clk 0:00:48.4]} 33... Bc8 {[%clk 0:01:16.6]} 34. Qa7 {[%clk 0:00:43.5]}
34... c5 {[%clk 0:01:05.9]} 35. Rc1 {[%clk 0:00:30.7]} 35... c4 {[%clk
0:01:02.3]} 36. Qd4 {[%clk 0:00:31]} 36... b5 {[%clk 0:00:57.8]} 37. Qxg7 {[%clk
0:00:31.2]} 37... Be6 {[%clk 0:00:57.5]} 38. Qg5+ {[%clk 0:00:30.3]} 38... Kf8
{[%clk 0:00:55.9]} 39. Rd1 {[%clk 0:00:30.4]} 39... Ke8 {[%clk 0:00:49]} 40.
Bc6+ {[%clk 0:00:30.3]} 40... Bd7 {[%clk 0:00:47.7]} 41. Rxd7 {[%clk 0:00:29.8]}
41... Qxd7 {[%clk 0:00:45.2]} 42. Bxd7+ {[%clk 0:00:29.3]} 42... Kxd7 {[%clk
0:00:46.1]} 43. Qxb5+ {[%clk 0:00:29.7]} 43... Ke7 {[%clk 0:00:46.5]} 44. Qxc4
{[%clk 0:00:29.6]} 44... Kf8 {[%clk 0:00:46.1]} 45. b4 {[%clk 0:00:29.4]} 45...
a4 {[%clk 0:00:45.3]} 46. b5 {[%clk 0:00:29.8]} 46... Kg7 {[%clk 0:00:45.8]} 47.
b6 {[%clk 0:00:30.4]} 47... Kg8 {[%clk 0:00:44.6]} 48. b7 {[%clk 0:00:30.9]}
48... Kg7 {[%clk 0:00:44.6]} 49. b8=Q {[%clk 0:00:30.8]} 1-0

[Event "*** Titled Tuesday Blitz"]
[Site "Chess.com"]
[Date "2021.02.16"]
[Round "11"]
[White "agartha01"]
[Black "jacky72"]
[Result "0-1"]
[WhiteElo "2487"]
[BlackElo "2697"]
[TimeControl "180+1"]
[EndTime "12:09:53 PST"]
[Termination "jacky72 won by resignation"]

1. d4 {[%clk 0:03:00.9]} 1... Nf6 {[%clk 0:02:59.1]} 2. Bf4 {[%clk 0:03:00.4]}
2... g6 {[%clk 0:02:57.6]} 3. Nf3 {[%clk 0:03:00.1]} 3... Bg7 {[%clk 0:02:57.8]}
4. e3 {[%clk 0:03:00.2]} 4... O-O {[%clk 0:02:57.7]} 5. Nbd2 {[%clk 0:03:00.4]}
5... d6 {[%clk 0:02:57.8]} 6. h3 {[%clk 0:03:00.6]} 6... b6 {[%clk 0:02:58.4]}
7. c3 {[%clk 0:03:00.7]} 7... Bb7 {[%clk 0:02:59]} 8. Bd3 {[%clk 0:03:01]} 8...
Nbd7 {[%clk 0:02:59.5]} 9. Bh2 {[%clk 0:03:01.2]} 9... Qe8 {[%clk 0:02:56.7]}
10. O-O {[%clk 0:03:00.7]} 10... e5 {[%clk 0:02:57.3]} 11. dxe5 {[%clk
0:03:00.9]} 11... dxe5 {[%clk 0:02:53.7]} 12. e4 {[%clk 0:02:54.9]} 12... Nc5
{[%clk 0:02:49.6]} 13. Bc2 {[%clk 0:02:52.1]} 13... Nfxe4 {[%clk 0:02:47.8]} 14.
Nxe4 {[%clk 0:02:49.2]} 14... Nxe4 {[%clk 0:02:39.4]} 15. Re1 {[%clk 0:02:47]}
15... f5 {[%clk 0:02:39.9]} 16. Bxe4 {[%clk 0:02:05.4]} 16... Bxe4 {[%clk
0:02:37.7]} 17. Qb3+ {[%clk 0:01:53.6]} 17... Kh8 {[%clk 0:02:36.1]} 18. Ng5
{[%clk 0:01:51.9]} 18... Bb7 {[%clk 0:02:36.2]} 19. Ne6 {[%clk 0:01:49.2]} 19...
f4 {[%clk 0:02:09.9]} 20. Nxf8 {[%clk 0:01:17.9]} 20... Qc6 {[%clk 0:02:09.1]}
21. f3 {[%clk 0:01:11]} 21... Rxf8 {[%clk 0:02:06.7]} 22. Kh1 {[%clk 0:01:08.9]}
22... g5 {[%clk 0:02:06.6]} 23. Qc2 {[%clk 0:00:47.7]} 23... Qe6 {[%clk
0:01:52.1]} 24. Rad1 {[%clk 0:00:43]} 24... h5 {[%clk 0:01:51.4]} 25. Qb3 {[%clk
0:00:32.7]} 25... Qf5 {[%clk 0:01:35.6]} 26. Rd5 {[%clk 0:00:17.4]} 26... g4
{[%clk 0:01:32.1]} 27. c4 {[%clk 0:00:15.3]} 27... gxh3 {[%clk 0:01:29.6]} 28.
gxh3 {[%clk 0:00:15]} 28... Bxd5 {[%clk 0:01:29.8]} 29. cxd5 {[%clk 0:00:15.5]}
29... Qxh3 {[%clk 0:01:30.7]} 30. Qd3 {[%clk 0:00:15.1]} 30... Qf5 {[%clk
0:01:15.9]} 31. Qxf5 {[%clk 0:00:14.3]} 31... Rxf5 {[%clk 0:01:16.8]} 32. Bg1
{[%clk 0:00:13.4]} 32... Bf8 {[%clk 0:01:13.8]} 33. Rc1 {[%clk 0:00:12.4]} 33...
Bd6 {[%clk 0:01:13]} 34. Bf2 {[%clk 0:00:12.7]} 34... Rg5 {[%clk 0:01:11.4]} 35.
Bh4 {[%clk 0:00:11.5]} 35... Rg8 {[%clk 0:01:11.3]} 36. a3 {[%clk 0:00:09.4]}
36... Kg7 {[%clk 0:01:10.6]} 37. Rg1+ {[%clk 0:00:08.9]} 37... Kf7 {[%clk
0:01:10.9]} 38. Rc1 {[%clk 0:00:09]} 38... a5 {[%clk 0:01:10.2]} 39. Kh2 {[%clk
0:00:08.1]} 39... b5 {[%clk 0:01:08.5]} 40. Be1 {[%clk 0:00:05.5]} 40... b4
{[%clk 0:01:07.1]} 41. a4 {[%clk 0:00:05.9]} 41... Kf6 {[%clk 0:01:03.1]} 42. b3
{[%clk 0:00:06.1]} 42... e4 {[%clk 0:00:59.8]} 43. Bh4+ {[%clk 0:00:04.8]} 43...
Kf5 {[%clk 0:00:59.1]} 0-1

[Event "*** Titled Tuesday Blitz"]
[Site "Chess.com"]
[Date "2021.02.16"]
[Round "11"]
[White "csati17"]
[Black "JQuiroga18"]
[Result "1-0"]
[WhiteElo "2597"]
[BlackElo "2449"]
[TimeControl "180+1"]
[EndTime "12:09:54 PST"]
[Termination "csati17 won by resignation"]

1. c4 {[%clk 0:03:00.9]} 1... Nf6 {[%clk 0:02:59.5]} 2. Nc3 {[%clk 0:03:00.6]}
2... e6 {[%clk 0:02:59.5]} 3. e4 {[%clk 0:03:00.8]} 3... d5 {[%clk 0:03:00]} 4.
cxd5 {[%clk 0:03:01.7]} 4... exd5 {[%clk 0:03:00.3]} 5. e5 {[%clk 0:03:02.6]}
5... d4 {[%clk 0:03:00.8]} 6. exf6 {[%clk 0:03:02.7]} 6... dxc3 {[%clk
0:03:01.2]} 7. Bb5+ {[%clk 0:03:03.6]} 7... c6 {[%clk 0:02:58.2]} 8. Qe2+ {[%clk
0:03:04.5]} 8... Be6 {[%clk 0:02:57.1]} 9. Bc4 {[%clk 0:03:05.4]} 9... Qd7
{[%clk 0:02:47.8]} 10. dxc3 {[%clk 0:02:53.9]} 10... gxf6 {[%clk 0:02:46.9]} 11.
Nf3 {[%clk 0:02:35.8]} 11... Be7 {[%clk 0:02:44.4]} 12. O-O {[%clk 0:02:31.9]}
12... Bxc4 {[%clk 0:01:39.7]} 13. Qxc4 {[%clk 0:02:32.8]} 13... Qe6 {[%clk
0:01:39.9]} 14. Qa4 {[%clk 0:02:11]} 14... Na6 {[%clk 0:01:36.1]} 15. Re1 {[%clk
0:02:07.5]} 15... Qd7 {[%clk 0:01:33.8]} 16. Qc4 {[%clk 0:01:04.9]} 16... Nc7
{[%clk 0:01:24.3]} 17. Bf4 {[%clk 0:00:44.3]} 17... Nd5 {[%clk 0:01:12.9]} 18.
Rad1 {[%clk 0:00:44.4]} 18... Rg8 {[%clk 0:01:01.6]} 19. Bg3 {[%clk 0:00:38.5]}
19... Rg4 {[%clk 0:00:57.4]} 20. Qb3 {[%clk 0:00:25.6]} 20... Kf8 {[%clk
0:00:30.7]} 21. c4 {[%clk 0:00:24.4]} 21... Bd6 {[%clk 0:00:24.6]} 22. cxd5
{[%clk 0:00:22.8]} 22... Bxg3 {[%clk 0:00:23.5]} 23. hxg3 {[%clk 0:00:22.6]}
23... cxd5 {[%clk 0:00:22.3]} 24. Rxd5 {[%clk 0:00:22.3]} 24... Qc6 {[%clk
0:00:21.7]} 25. Qd3 {[%clk 0:00:20.5]} 25... Kg7 {[%clk 0:00:20.9]} 26. Nh4
{[%clk 0:00:20.1]} 26... Kh8 {[%clk 0:00:19.5]} 27. Rd8+ {[%clk 0:00:19.5]}
27... Rxd8 {[%clk 0:00:19.1]} 28. Qxd8+ {[%clk 0:00:19.2]} 28... Rg8 {[%clk
0:00:19.5]} 29. Qe7 {[%clk 0:00:17.8]} 29... Qd5 {[%clk 0:00:11.7]} 30. Qxf6+
{[%clk 0:00:17.6]} 1-0

[Event "*** Titled Tuesday Blitz"]
[Site "Chess.com"]
[Date "2021.02.16"]
[Round "11"]
[White "novocane"]
[Black "MuhittinBuker"]
[Result "1-0"]
[WhiteElo "2257"]
[BlackElo "2084"]
[TimeControl "180+1"]
[EndTime "12:09:58 PST"]
[Termination "novocane won on time"]

1. d4 {[%clk 0:03:00.9]} 1... Nf6 {[%clk 0:02:58.8]} 2. c4 {[%clk 0:03:00.9]}
2... e6 {[%clk 0:02:58.8]} 3. Nc3 {[%clk 0:03:01.1]} 3... Bb4 {[%clk 0:02:58]}
4. e3 {[%clk 0:03:00.8]} 4... O-O {[%clk 0:02:56.6]} 5. Ne2 {[%clk 0:03:00.8]}
5... d5 {[%clk 0:02:57]} 6. a3 {[%clk 0:03:00.3]} 6... Bxc3+ {[%clk 0:02:56.6]}
7. Nxc3 {[%clk 0:02:59.9]} 7... c5 {[%clk 0:02:57]} 8. dxc5 {[%clk 0:02:58.5]}
8... a5 {[%clk 0:02:51.9]} 9. cxd5 {[%clk 0:02:49.2]} 9... exd5 {[%clk
0:02:50.7]} 10. Rb1 {[%clk 0:02:39.1]} 10... Nc6 {[%clk 0:02:38]} 11. Bd3 {[%clk
0:02:08.4]} 11... d4 {[%clk 0:02:06.9]} 12. exd4 {[%clk 0:02:05.4]} 12... Re8+
{[%clk 0:02:04.6]} 13. Be3 {[%clk 0:02:01.1]} 13... Nxd4 {[%clk 0:01:33]} 14.
O-O {[%clk 0:01:55.5]} 14... Bg4 {[%clk 0:01:31.5]} 15. Bxh7+ {[%clk 0:01:40.8]}
15... Kxh7 {[%clk 0:01:18.5]} 16. Qxd4 {[%clk 0:01:39.8]} 16... Qc8 {[%clk
0:00:53.7]} 17. f3 {[%clk 0:01:07.8]} 17... Bf5 {[%clk 0:00:48.8]} 18. Rbd1
{[%clk 0:01:02.7]} 18... Qc6 {[%clk 0:00:48.4]} 19. Bg5 {[%clk 0:00:57.4]} 19...
Nd7 {[%clk 0:00:38.1]} 20. b4 {[%clk 0:00:49.9]} 20... axb4 {[%clk 0:00:35.8]}
21. axb4 {[%clk 0:00:50.8]} 21... f6 {[%clk 0:00:11.2]} 22. Bf4 {[%clk
0:00:45.1]} 22... Ne5 {[%clk 0:00:09.6]} 23. b5 {[%clk 0:00:35.1]} 23... Qe6
{[%clk 0:00:08.9]} 24. Bxe5 {[%clk 0:00:33.9]} 24... Qxe5 {[%clk 0:00:08]} 25.
Qxe5 {[%clk 0:00:23.9]} 25... Rxe5 {[%clk 0:00:08]} 26. Rd5 {[%clk 0:00:23.9]}
26... Rxd5 {[%clk 0:00:04.8]} 27. Nxd5 {[%clk 0:00:23.9]} 27... Bd3 {[%clk
0:00:03]} 28. Re1 {[%clk 0:00:20.5]} 1-0

[Event "*** Titled Tuesday Blitz"]
[Site "Chess.com"]
[Date "2021.02.16"]
[Round "11"]
[White "GadimbayliA"]
[Black "goldihouse"]
[Result "1-0"]
[WhiteElo "2822"]
[BlackElo "2559"]
[TimeControl "180+1"]
[EndTime "12:10:00 PST"]
[Termination "GadimbayliA won on time"]

1. e4 {[%clk 0:02:57.7]} 1... e6 {[%clk 0:02:59.8]} 2. d4 {[%clk 0:02:57.5]}
2... d5 {[%clk 0:03:00.7]} 3. Nd2 {[%clk 0:02:58.1]} 3... Nc6 {[%clk 0:03:00.5]}
4. c3 {[%clk 0:02:58]} 4... e5 {[%clk 0:03:00.3]} 5. exd5 {[%clk 0:02:58.7]}
5... Qxd5 {[%clk 0:03:01.2]} 6. Ngf3 {[%clk 0:02:59.6]} 6... exd4 {[%clk
0:03:01.3]} 7. Bc4 {[%clk 0:03:00.5]} 7... Qf5 {[%clk 0:03:01.7]} 8. O-O {[%clk
0:03:01.4]} 8... Be6 {[%clk 0:03:02.1]} 9. Bxe6 {[%clk 0:03:01.2]} 9... fxe6
{[%clk 0:03:03]} 10. Nb3 {[%clk 0:03:01.7]} 10... O-O-O {[%clk 0:03:01.8]} 11.
Nbxd4 {[%clk 0:03:01.9]} 11... Nxd4 {[%clk 0:03:02]} 12. Nxd4 {[%clk 0:03:02.8]}
12... Qg6 {[%clk 0:02:25.8]} 13. Qa4 {[%clk 0:03:00.1]} 13... Bc5 {[%clk
0:02:16.7]} 14. Be3 {[%clk 0:02:57.4]} 14... Bxd4 {[%clk 0:01:53.6]} 15. Bxd4
{[%clk 0:02:44.3]} 15... a6 {[%clk 0:01:53.9]} 16. b4 {[%clk 0:02:44.9]} 16...
Qd3 {[%clk 0:01:53.3]} 17. Rfe1 {[%clk 0:02:44.4]} 17... Nf6 {[%clk 0:01:52.8]}
18. Rxe6 {[%clk 0:02:42.4]} 18... Nd5 {[%clk 0:01:44]} 19. Qb3 {[%clk
0:02:37.2]} 19... Nf4 {[%clk 0:01:41]} 20. Re3 {[%clk 0:02:30.1]} 20... Qg6
{[%clk 0:01:10.6]} 21. g3 {[%clk 0:02:23.5]} 21... Nh3+ {[%clk 0:01:10.4]} 22.
Kg2 {[%clk 0:02:21.2]} 22... Ng5 {[%clk 0:01:10.5]} 23. h4 {[%clk 0:02:00.2]}
23... Qc6+ {[%clk 0:01:09.4]} 24. f3 {[%clk 0:02:00.5]} 24... Nxf3 {[%clk
0:00:24.7]} 25. Rxf3 {[%clk 0:02:01.4]} 25... Rhf8 {[%clk 0:00:24.8]} 26. Rf1
{[%clk 0:01:57]} 26... Rf5 {[%clk 0:00:18.5]} 27. Qd1 {[%clk 0:01:46.9]} 27...
Rdf8 {[%clk 0:00:18.4]} 28. Bxg7 {[%clk 0:01:47.1]} 28... R8f7 {[%clk
0:00:18.2]} 29. Bd4 {[%clk 0:01:47.2]} 29... Qe4 {[%clk 0:00:18.1]} 30. Rf2
{[%clk 0:01:44]} 30... b6 {[%clk 0:00:17.6]} 31. a4 {[%clk 0:01:41.9]} 31... Kb7
{[%clk 0:00:17.7]} 32. a5 {[%clk 0:01:41.9]} 32... b5 {[%clk 0:00:18.1]} 33. Qd3
{[%clk 0:01:35]} 33... Qd5 {[%clk 0:00:16.8]} 34. Bc5 {[%clk 0:01:33.9]} 34...
Qc6 {[%clk 0:00:14.5]} 35. g4 {[%clk 0:01:32.9]} 35... Rf4 {[%clk 0:00:14.1]}
36. Kg3 {[%clk 0:01:33.4]} 36... Rxf3+ {[%clk 0:00:10.5]} 37. Rxf3 {[%clk
0:01:34.3]} 37... Rd7 {[%clk 0:00:08.2]} 38. Qf5 {[%clk 0:01:33.7]} 38... Rd5
{[%clk 0:00:08.4]} 39. Qf4 {[%clk 0:01:30.3]} 39... Qe6 {[%clk 0:00:07.7]} 40.
Re3 {[%clk 0:01:29.6]} 40... Qg6 {[%clk 0:00:06.9]} 41. Qf3 {[%clk 0:01:28.3]}
41... Qc6 {[%clk 0:00:06.9]} 42. Kh3 {[%clk 0:01:25.5]} 42... h5 {[%clk
0:00:06.4]} 43. gxh5 {[%clk 0:01:24.6]} 43... Qd7+ {[%clk 0:00:06.7]} 44. Qg4
{[%clk 0:01:22.5]} 44... Qf7 {[%clk 0:00:05.9]} 45. h6 {[%clk 0:01:19.2]} 45...
Qf1+ {[%clk 0:00:05.5]} 46. Qg2 {[%clk 0:01:19.3]} 46... Qf5+ {[%clk 0:00:05.2]}
47. Kh2 {[%clk 0:01:19.1]} 47... Qf4+ {[%clk 0:00:05.6]} 48. Kg1 {[%clk
0:01:07.4]} 48... Kc6 {[%clk 0:00:01.7]} 49. Re6+ {[%clk 0:01:07.2]} 1-0

[Event "*** Titled Tuesday Blitz"]
[Site "Chess.com"]
[Date "2021.02.16"]
[Round "11"]
[White "northridgehawk"]
[Black "Azde"]
[Result "1-0"]
[WhiteElo "2352"]
[BlackElo "2421"]
[TimeControl "180+1"]
[EndTime "12:10:04 PST"]
[Termination "northridgehawk won on time"]

1. e4 {[%clk 0:03:00.9]} 1... c6 {[%clk 0:02:59.9]} 2. d3 {[%clk 0:02:50.8]}
2... d5 {[%clk 0:03:00.8]} 3. Nd2 {[%clk 0:02:50.9]} 3... e5 {[%clk 0:03:00.9]}
4. g3 {[%clk 0:02:51]} 4... Bd6 {[%clk 0:03:01.2]} 5. Bg2 {[%clk 0:02:51.3]}
5... Ne7 {[%clk 0:03:00.7]} 6. Ngf3 {[%clk 0:02:50.1]} 6... O-O {[%clk
0:03:00.9]} 7. O-O {[%clk 0:02:49.6]} 7... f5 {[%clk 0:03:01.4]} 8. exf5 {[%clk
0:02:46.3]} 8... Bxf5 {[%clk 0:02:54.6]} 9. Re1 {[%clk 0:02:46.2]} 9... Nd7
{[%clk 0:02:54]} 10. h3 {[%clk 0:02:39.3]} 10... h6 {[%clk 0:02:48.5]} 11. Nf1
{[%clk 0:02:29.5]} 11... Qc7 {[%clk 0:02:47.3]} 12. Be3 {[%clk 0:02:21.9]} 12...
Rae8 {[%clk 0:02:46.3]} 13. Qd2 {[%clk 0:02:21.5]} 13... d4 {[%clk 0:02:21.7]}
14. Bxh6 {[%clk 0:02:20.1]} 14... gxh6 {[%clk 0:02:22.6]} 15. Qxh6 {[%clk
0:02:19.6]} 15... Rf6 {[%clk 0:02:21.3]} 16. Qh4 {[%clk 0:02:12.6]} 16... Ng6
{[%clk 0:02:12.1]} 17. Qg5 {[%clk 0:02:11.6]} 17... Ref8 {[%clk 0:01:43.5]} 18.
N1d2 {[%clk 0:02:07.7]} 18... Kg7 {[%clk 0:01:37.8]} 19. Nh4 {[%clk 0:02:07]}
19... Nc5 {[%clk 0:01:15.6]} 20. Ne4 {[%clk 0:01:30.2]} 20... Bxe4 {[%clk
0:01:09.2]} 21. Rxe4 {[%clk 0:01:27.5]} 21... Nxe4 {[%clk 0:00:30.3]} 22. Bxe4
{[%clk 0:01:26.9]} 22... Qf7 {[%clk 0:00:31]} 23. g4 {[%clk 0:01:19.8]} 23...
Be7 {[%clk 0:00:28.9]} 24. Bxg6 {[%clk 0:01:07]} 24... Rxg6 {[%clk 0:00:25.6]}
25. Nf5+ {[%clk 0:01:07.4]} 25... Qxf5 {[%clk 0:00:19.9]} 26. Qxe7+ {[%clk
0:01:03.6]} 26... Qf7 {[%clk 0:00:19.6]} 27. Qxe5+ {[%clk 0:01:03.2]} 27... Kg8
{[%clk 0:00:19.5]} 28. Qxd4 {[%clk 0:01:00.6]} 28... Qf3 {[%clk 0:00:17.5]} 29.
Qe3 {[%clk 0:00:53.6]} 29... Qxe3 {[%clk 0:00:12.2]} 30. fxe3 {[%clk 0:00:54.5]}
30... Kg7 {[%clk 0:00:11.9]} 31. Re1 {[%clk 0:00:50.6]} 31... Rgf6 {[%clk
0:00:11.3]} 32. Re2 {[%clk 0:00:50.4]} 32... Kg6 {[%clk 0:00:09.6]} 33. Kg2
{[%clk 0:00:49.7]} 33... Kg5 {[%clk 0:00:07.2]} 34. e4 {[%clk 0:00:49]} 34...
Kh4 {[%clk 0:00:07]} 35. e5 {[%clk 0:00:48.8]} 35... Re6 {[%clk 0:00:07.3]} 36.
d4 {[%clk 0:00:48.4]} 36... Rd8 {[%clk 0:00:07.4]} 37. c3 {[%clk 0:00:48]} 37...
c5 {[%clk 0:00:07.8]} 38. Re4 {[%clk 0:00:47.9]} 38... cxd4 {[%clk 0:00:07]} 39.
cxd4 {[%clk 0:00:48.8]} 39... Rd5 {[%clk 0:00:07]} 40. Rf4 {[%clk 0:00:48.5]}
40... Kg5 {[%clk 0:00:03.1]} 41. Re4 {[%clk 0:00:43.4]} 41... Rc6 {[%clk
0:00:01.5]} 42. Kg3 {[%clk 0:00:42.5]} 1-0

[Event "*** Titled Tuesday Blitz"]
[Site "Chess.com"]
[Date "2021.02.16"]
[Round "11"]
[White "VFernandezB"]
[Black "QuintilianoR"]
[Result "0-1"]
[WhiteElo "2458"]
[BlackElo "2704"]
[TimeControl "180+1"]
[EndTime "12:10:12 PST"]
[Termination "QuintilianoR won by resignation"]

1. e3 {[%clk 0:03:00.9]} 1... d5 {[%clk 0:02:58.5]} 2. Nf3 {[%clk 0:02:58.7]}
2... Nf6 {[%clk 0:02:58.3]} 3. c4 {[%clk 0:02:58.4]} 3... e6 {[%clk 0:02:58]} 4.
b3 {[%clk 0:02:57.2]} 4... Be7 {[%clk 0:02:57.7]} 5. Bb2 {[%clk 0:02:57.2]} 5...
b6 {[%clk 0:02:58.2]} 6. Be2 {[%clk 0:02:56.3]} 6... O-O {[%clk 0:02:58.3]} 7.
O-O {[%clk 0:02:56.6]} 7... Bb7 {[%clk 0:02:58.9]} 8. Nc3 {[%clk 0:02:55.5]}
8... c5 {[%clk 0:02:58.7]} 9. cxd5 {[%clk 0:02:53.4]} 9... exd5 {[%clk
0:02:58.5]} 10. d4 {[%clk 0:02:53.4]} 10... Nbd7 {[%clk 0:02:56.2]} 11. Rc1
{[%clk 0:02:45.8]} 11... Rc8 {[%clk 0:02:55.7]} 12. Qc2 {[%clk 0:02:37.1]} 12...
Bd6 {[%clk 0:02:49.7]} 13. Rfd1 {[%clk 0:02:34.7]} 13... Qe7 {[%clk 0:02:48.1]}
14. Qf5 {[%clk 0:02:24.5]} 14... Qe6 {[%clk 0:02:34.5]} 15. Qxe6 {[%clk
0:02:17.3]} 15... fxe6 {[%clk 0:02:35.4]} 16. Na4 {[%clk 0:01:53.3]} 16... Bc6
{[%clk 0:02:23]} 17. Nc3 {[%clk 0:01:36.5]} 17... Rfe8 {[%clk 0:02:16.1]} 18.
Ba6 {[%clk 0:01:35.8]} 18... Rcd8 {[%clk 0:02:06.5]} 19. Bb5 {[%clk 0:01:33.7]}
19... Bb7 {[%clk 0:02:00.5]} 20. Bf1 {[%clk 0:01:30.2]} 20... e5 {[%clk
0:01:40.3]} 21. dxe5 {[%clk 0:01:29.5]} 21... Nxe5 {[%clk 0:01:40.2]} 22. Nxe5
{[%clk 0:01:28.8]} 22... Bxe5 {[%clk 0:01:41.1]} 23. Na4 {[%clk 0:01:26.9]}
23... Bxb2 {[%clk 0:01:33.8]} 24. Nxb2 {[%clk 0:01:27.8]} 24... Bc6 {[%clk
0:01:34.4]} 25. Nd3 {[%clk 0:01:07.5]} 25... d4 {[%clk 0:01:26.4]} 26. exd4
{[%clk 0:00:59.2]} 26... Rxd4 {[%clk 0:01:27.3]} 27. Nb2 {[%clk 0:00:56.8]}
27... Red8 {[%clk 0:01:25.7]} 28. Rxd4 {[%clk 0:00:56.7]} 28... Rxd4 {[%clk
0:01:26.6]} 29. Rd1 {[%clk 0:00:57]} 29... Rxd1 {[%clk 0:01:26.1]} 30. Nxd1
{[%clk 0:00:56.7]} 30... b5 {[%clk 0:01:19.8]} 31. f3 {[%clk 0:00:52]} 31... Kf7
{[%clk 0:01:16.7]} 32. Kf2 {[%clk 0:00:52]} 32... Ke6 {[%clk 0:01:17.2]} 33. Ke3
{[%clk 0:00:51.9]} 33... Ke5 {[%clk 0:01:17.8]} 34. Nb2 {[%clk 0:00:47.9]} 34...
Nd5+ {[%clk 0:01:16.5]} 35. Kf2 {[%clk 0:00:45.9]} 35... Kd4 {[%clk 0:01:14.8]}
36. Nd1 {[%clk 0:00:34.9]} 36... c4 {[%clk 0:01:10.6]} 37. bxc4 {[%clk
0:00:33.6]} 37... bxc4 {[%clk 0:01:11.5]} 38. Ke1 {[%clk 0:00:32.6]} 38... c3
{[%clk 0:01:08.1]} 39. Nf2 {[%clk 0:00:32.8]} 39... Nb4 {[%clk 0:01:01.2]} 40.
a4 {[%clk 0:00:16.6]} 40... Bxa4 {[%clk 0:00:58.7]} 41. Ne4 {[%clk 0:00:17]}
41... Bc6 {[%clk 0:00:48.6]} 42. Ng5 {[%clk 0:00:16.5]} 42... Bd5 {[%clk
0:00:38.3]} 43. Kd1 {[%clk 0:00:16.1]} 43... Bb3+ {[%clk 0:00:36.9]} 44. Kc1
{[%clk 0:00:15.8]} 44... Na2+ {[%clk 0:00:37.1]} 45. Kb1 {[%clk 0:00:16.3]}
45... c2+ {[%clk 0:00:37.7]} 46. Kb2 {[%clk 0:00:17.1]} 46... c1=Q+ {[%clk
0:00:38.2]} 47. Kxb3 {[%clk 0:00:17.8]} 47... Qxf1 {[%clk 0:00:36.4]} 0-1

[Event "*** Titled Tuesday Blitz"]
[Site "Chess.com"]
[Date "2021.02.16"]
[Round "11"]
[White "ErikRonka"]
[Black "Piotrek1979"]
[Result "1-0"]
[WhiteElo "2500"]
[BlackElo "2401"]
[TimeControl "180+1"]
[EndTime "12:10:14 PST"]
[Termination "ErikRonka won on time"]

1. e4 {[%clk 0:03:00.9]} 1... c5 {[%clk 0:02:59.2]} 2. Nf3 {[%clk 0:03:00.5]}
2... Nc6 {[%clk 0:02:59.6]} 3. Nc3 {[%clk 0:03:01]} 3... g6 {[%clk 0:02:58.6]}
4. d4 {[%clk 0:03:00.6]} 4... cxd4 {[%clk 0:02:59.5]} 5. Nxd4 {[%clk 0:03:01.5]}
5... Bg7 {[%clk 0:02:58.7]} 6. Be3 {[%clk 0:03:02]} 6... Nf6 {[%clk 0:02:54.8]}
7. Bc4 {[%clk 0:03:02.4]} 7... Qa5 {[%clk 0:02:52.5]} 8. O-O {[%clk 0:03:01.9]}
8... O-O {[%clk 0:02:51]} 9. Bb3 {[%clk 0:03:02.1]} 9... d6 {[%clk 0:02:50.1]}
10. h3 {[%clk 0:03:02.6]} 10... Bd7 {[%clk 0:02:48.3]} 11. Re1 {[%clk 0:03:03]}
11... Rfe8 {[%clk 0:02:43.7]} 12. Nf3 {[%clk 0:02:57.9]} 12... Rad8 {[%clk
0:02:38.6]} 13. Qe2 {[%clk 0:02:57.5]} 13... Ne5 {[%clk 0:02:37]} 14. Nd4 {[%clk
0:02:53.3]} 14... Rc8 {[%clk 0:02:11]} 15. Rad1 {[%clk 0:02:48.2]} 15... b5
{[%clk 0:01:41.4]} 16. Bg5 {[%clk 0:02:40.3]} 16... Nc4 {[%clk 0:01:30]} 17. Bc1
{[%clk 0:02:12.4]} 17... Rc5 {[%clk 0:01:18]} 18. Nd5 {[%clk 0:01:49]} 18...
Nxd5 {[%clk 0:01:16]} 19. exd5 {[%clk 0:01:49.9]} 19... Rxd5 {[%clk 0:01:10.2]}
20. Nxb5 {[%clk 0:01:26.6]} 20... Rxd1 {[%clk 0:01:08.9]} 21. Rxd1 {[%clk
0:01:24]} 21... Nxb2 {[%clk 0:00:24.2]} 22. Rd5 {[%clk 0:01:02.6]} 22... e6
{[%clk 0:00:23.4]} 23. Nxd6 {[%clk 0:00:57.5]} 23... exd5 {[%clk 0:00:18.3]} 24.
Nxe8 {[%clk 0:00:57.4]} 24... Nc4 {[%clk 0:00:08]} 25. Qe7 {[%clk 0:00:50]}
25... Bxe8 {[%clk 0:00:03.1]} 26. Qxe8+ {[%clk 0:00:49.7]} 26... Bf8 {[%clk
0:00:04]} 27. Bh6 {[%clk 0:00:48.9]} 27... Qc5 {[%clk 0:00:03.5]} 28. Qd8 {[%clk
0:00:44.9]} 28... Qe7 {[%clk 0:00:03]} 29. Qa8 {[%clk 0:00:33.6]} 29... Qe1+
{[%clk 0:00:02.5]} 30. Kh2 {[%clk 0:00:34]} 30... Qe5+ {[%clk 0:00:01.8]} 31. g3
{[%clk 0:00:34.4]} 31... Qd6 {[%clk 0:00:02.4]} 32. Bxf8 {[%clk 0:00:31.8]}
32... Qxf8 {[%clk 0:00:02]} 33. Qxa7 {[%clk 0:00:32.3]} 33... Ne5 {[%clk
0:00:01.9]} 34. Qe3 {[%clk 0:00:30.5]} 34... Qe8 {[%clk 0:00:01.9]} 35. Bxd5
{[%clk 0:00:26.7]} 35... Qe7 {[%clk 0:00:01.1]} 36. a4 {[%clk 0:00:22.4]} 1-0